bitfinex/quotes_BTCUSD_20230120
["timestamp","ask_amount","ask_price","bid_price","bid_amount"]
[1674258150047,0.309811,22629.0,22628.0,0.0092567]
[1674258151665,0.44542548,22630.0,22628.0,0.0092567]
[1674258151926,0.00395963,22630.0,22628.0,0.0092567]
[1674258152188,0.00395963,22630.0,22629.0,1.031491]
[1674258152463,0.00395963,22630.0,22629.0,1.406391]
[1674258152714,0.00395963,22630.0,22629.0,1.23652338]
[1674258153218,0.09495963,22630.0,22629.0,1.38652338]
[1674258153740,0.09495963,22630.0,22629.0,1.16447719]
[1674258154039,0.00395963,22630.0,22629.0,1.16447719]
[1674258154308,0.01295963,22630.0,22629.0,1.16447719]
[1674258154560,0.0123609,22630.0,22629.0,1.16447719]
[1674258154809,0.0213609,22630.0,22629.0,1.16447719]
[1674258155579,0.0213609,22630.0,22629.0,2.09300034]
[1674258155854,0.17376482,22639.0,22632.0,1.325514]
[1674258155855,0.02376482,22639.0,22632.0,1.325514]
[1674258156110,0.02376482,22639.0,22634.0,0.0664]
[1674258156418,0.02376482,22639.0,22635.0,0.883566]
[1674258156633,0.02376482,22639.0,22636.0,0.3]
[1674258156908,0.02376482,22639.0,22637.0,0.441743]
[1674258157412,0.02376482,22639.0,22638.0,0.741735]
[1674258157930,0.09876482,22639.0,22638.0,0.741735]
[1674258158213,0.09876482,22639.0,22638.0,0.441735]
[1674258158463,0.02376482,22639.0,22638.0,0.508135]
[1674258158714,0.09276482,22639.0,22638.0,0.583035]
[1674258159036,0.02376482,22639.0,22638.0,1.18750815]
[1674258159229,0.05276482,22639.0,22638.0,1.49050815]
[1674258159480,0.05276482,22639.0,22638.0,1.036035]
[1674258160500,0.02376482,22639.0,22638.0,1.033035]
[1674258160754,0.03076482,22639.0,22638.0,1.056035]
[1674258161019,0.02376482,22639.0,22638.0,1.033035]
[1674258161272,0.02976482,22639.0,22638.0,1.056035]
[1674258161519,0.02376482,22639.0,22638.0,1.033035]
[1674258161787,0.02376482,22639.0,22638.0,1.056035]
[1674258161788,0.03076482,22639.0,22638.0,1.056035]
[1674258162286,0.03076482,22639.0,22638.0,1.033035]
[1674258162541,0.02376482,22639.0,22638.0,1.033035]
[1674258163065,0.02376482,22639.0,22638.0,0.733035]
[1674258163316,0.02376482,22639.0,22637.0,0.441743]
[1674258164077,0.02376482,22639.0,22638.0,0.591735]
[1674258164318,0.03076482,22639.0,22638.0,0.612735]
[1674258164577,0.03076482,22639.0,22638.0,0.591735]
[1674258164578,0.02376482,22639.0,22638.0,0.591735]
[1674258164836,0.09376482,22639.0,22638.0,1.099535]
[1674258165097,0.02376482,22639.0,22638.0,1.20444118]
[1674258165360,0.02976482,22639.0,22638.0,1.22444118]
[1674258165611,0.02976482,22639.0,22638.0,1.38964118]
[1674258165866,0.03676482,22639.0,22638.0,1.097435]
[1674258166642,0.03676482,22639.0,22638.0,1.054135]
[1674258166893,0.02376482,22639.0,22638.0,1.033135]
[1674258167682,0.03076482,22639.0,22638.0,1.054135]
[1674258167974,0.02376482,22639.0,22638.0,1.48760815]
[1674258168688,0.02376482,22639.0,22638.0,1.033135]
[1674258169482,0.02376482,22639.0,22638.0,2.10137569]
[1674258169745,0.03076482,22639.0,22638.0,1.72945815]
[1674258169998,0.03076482,22639.0,22638.0,1.89159338]
[1674258169999,0.02376482,22639.0,22638.0,1.89159338]
[1674258170246,8.2e-07,22639.0,22638.0,1.99632826]
[1674258170503,0.00949795,22640.0,22638.0,1.81315838]
[1674258170751,0.00949795,22640.0,22639.0,0.52037315]
[1674258170992,0.01051321,22642.0,22640.0,0.15]
[1674258171261,0.01051321,22642.0,22641.0,0.891852]
[1674258171520,0.01051321,22642.0,22641.0,2.03132515]
[1674258172277,0.004129,22645.0,22641.0,2.03132515]
[1674258172544,0.004129,22645.0,22644.0,0.2208]
[1674258172789,0.004129,22645.0,22644.0,2.238654]
[1674258173820,0.004129,22645.0,22644.0,1.987054]
[1674258174065,0.004129,22645.0,22644.0,2.053054]
[1674258175383,0.004129,22645.0,22644.0,1.832254]
[1674258175897,0.004129,22645.0,22644.0,1.465854]
[1674258176151,0.004129,22645.0,22644.0,1.399854]
[1674258176407,0.004129,22645.0,22644.0,1.506854]
[1674258176928,0.004129,22645.0,22644.0,1.399854]
[1674258177184,0.004129,22645.0,22644.0,1.507854]
[1674258177441,0.004129,22645.0,22644.0,1.875354]
[1674258178454,0.004129,22645.0,22644.0,2.096164]
[1674258178972,0.004129,22645.0,22644.0,1.988164]
[1674258179230,0.004129,22645.0,22644.0,2.095164]
[1674258181758,0.004129,22645.0,22644.0,1.874354]
[1674258183317,0.004129,22645.0,22644.0,1.767354]
[1674258183565,0.004129,22645.0,22644.0,1.874354]
[1674258183821,0.004129,22645.0,22644.0,1.767354]
[1674258184333,0.004129,22645.0,22644.0,1.874354]
[1674258185613,0.004129,22645.0,22644.0,1.433354]
[1674258186391,0.004129,22645.0,22644.0,1.431854]
[1674258186651,0.004129,22645.0,22644.0,1.324854]
[1674258186907,0.004129,22645.0,22644.0,1.731854]
[1674258187238,0.004129,22645.0,22644.0,1.740354]
[1674258187685,0.01051321,22649.0,22645.0,0.15]
[1674258187929,0.01051321,22649.0,22646.0,0.891658]
[1674258188444,0.01051321,22649.0,22646.0,1.191658]
[1674258189703,0.01051321,22649.0,22646.0,1.341658]
[1674258189972,2.1e-07,22647.0,22646.0,1.341658]
[1674258190242,2.1e-07,22647.0,22646.0,1.257658]
[1674258191761,2.1e-07,22647.0,22646.0,1.191658]
[1674258192008,2.1e-07,22647.0,22646.0,0.999658]
[1674258192781,2.1e-07,22647.0,22646.0,0.883158]
[1674258193042,2.1e-07,22647.0,22646.0,0.949158]
[1674258193535,2.1e-07,22647.0,22646.0,1.249158]
[1674258193796,2.1e-07,22647.0,22646.0,1.183158]
[1674258194046,0.15,22648.0,22646.0,1.183158]
[1674258194317,0.14500021,22648.0,22646.0,1.183158]
[1674258194901,0.32351,22647.0,22646.0,0.887158]
[1674258195082,0.14500021,22648.0,22646.0,0.883158]
[1674258195335,0.14500021,22648.0,22647.0,0.3]
[1674258195840,0.313692,22647.0,22646.0,0.887158]
[1674258196098,0.14500021,22648.0,22646.0,1.183158]
[1674258196343,0.14500021,22648.0,22647.0,0.3]
[1674258196593,0.14500021,22648.0,22646.0,0.441579]
[1674258196871,0.7168299,22647.0,22644.0,0.441618]
[1674258197135,0.0664,22645.0,22643.0,0.441619]
[1674258197413,0.38129,22644.0,22643.0,0.441619]
[1674258197894,0.0659,22644.0,22643.0,0.441619]
[1674258198155,0.386998,22644.0,22643.0,0.441619]
[1674258198665,0.376248,22644.0,22643.0,0.513619]
[1674258199202,0.376248,22644.0,22643.0,0.072]
[1674258199452,0.376248,22644.0,22642.0,0.441652]
[1674258199453,0.7307437,22644.0,22642.0,0.441652]
[1674258199710,0.465836,22643.0,22642.0,0.441652]
[1674258200222,0.307366,22642.0,22640.0,0.441679]
[1674258200480,0.382884,22641.0,22640.0,0.441679]
[1674258200747,0.0664,22641.0,22640.0,0.441679]
[1674258201513,0.0664,22641.0,22640.0,0.741679]
[1674258202027,0.0664,22641.0,22640.0,0.749679]
[1674258202284,0.0664,22641.0,22640.0,0.449679]
[1674258203042,0.0664,22641.0,22640.0,0.749679]
[1674258203289,0.0664,22641.0,22640.0,0.449679]
[1674258203841,0.0664,22641.0,22640.0,0.008]
[1674258203842,0.377731,22641.0,22640.0,0.008]
[1674258204091,0.61962693,22641.0,22640.0,0.008]
[1674258204357,0.443431,22641.0,22640.0,0.008]
[1674258204597,0.593431,22641.0,22640.0,0.008]
[1674258208735,0.443431,22641.0,22640.0,0.008]
[1674258208961,0.1321,22641.0,22640.0,0.008]
[1674258209498,1.16286,22644.0,22640.0,0.008]
[1674258209499,0.7639,22644.0,22640.0,0.008]
[1674258209754,0.46683385,22645.0,22641.0,0.883335]
[1674258210005,0.46683385,22645.0,22642.0,0.3]
[1674258210259,0.46683385,22645.0,22643.0,0.441637]
[1674258210763,0.30747,22644.0,22643.0,0.441637]
[1674258211031,0.46683385,22645.0,22643.0,0.741637]
[1674258211282,0.46683385,22645.0,22644.0,0.3]
[1674258212312,0.01051321,22649.0,22645.0,0.441598]
[1674258212827,0.07691321,22649.0,22646.0,0.3]
[1674258213084,0.01051321,22649.0,22647.0,0.441559]
[1674258213360,0.01051321,22649.0,22648.0,0.3]
[1674258214386,0.01051321,22649.0,22647.0,0.20380404]
[1674258215400,0.01051321,22649.0,22648.0,0.004]
[1674258215979,0.01051321,22649.0,22647.0,0.20280404]
[1674258216468,0.01051321,22649.0,22648.0,0.74154]
[1674258216964,0.01051321,22649.0,22648.0,0.74554]
[1674258217219,0.01051321,22649.0,22648.0,0.74154]
[1674258217478,0.01051321,22649.0,22648.0,0.64297199]
[1674258217728,0.01051321,22649.0,22648.0,0.44154]
[1674258217991,0.01051321,22649.0,22648.0,0.44554]
[1674258218295,0.01051321,22649.0,22648.0,0.59554]
[1674258219360,0.01051321,22649.0,22648.0,0.89554]
[1674258224322,0.01051321,22649.0,22648.0,0.74554]
[1674258225338,0.01051321,22649.0,22648.0,0.89554]
[1674258226129,0.01051321,22649.0,22648.0,0.97044]
[1674258226392,0.01051321,22649.0,22648.0,1.07514023]
[1674258226918,0.01051321,22649.0,22648.0,0.97044]
[1674258227186,2.1e-07,22649.0,22648.0,1.64567315]
[1674258227440,0.5001,22650.0,22649.0,0.59152]
[1674258227701,0.5001,22650.0,22649.0,0.66642]
[1674258227960,0.01129669,22654.0,22649.0,1.59199338]
[1674258228214,0.01129669,22654.0,22652.0,0.28713]
[1674258228501,0.01129669,22654.0,22653.0,1.341384]
[1674258230003,0.01129669,22654.0,22653.0,1.435384]
[1674258230532,0.01129669,22654.0,22653.0,1.285384]
[1674258231060,0.01129669,22654.0,22653.0,1.276884]
[1674258232601,0.01129669,22654.0,22653.0,0.976884]
[1674258233098,0.01129669,22654.0,22653.0,0.882884]
[1674258233355,0.01129669,22654.0,22653.0,0.976884]
[1674258233616,0.01129669,22654.0,22653.0,0.882884]
[1674258233829,0.01129669,22654.0,22653.0,0.886884]
[1674258234657,0.32150769,22654.0,22653.0,0.886884]
[1674258234911,0.32150769,22654.0,22653.0,0.882884]
[1674258235174,0.01129669,22654.0,22653.0,0.889884]
[1674258235938,0.01129669,22654.0,22653.0,0.898384]
[1674258236188,0.01129669,22654.0,22653.0,1.198384]
[1674258236703,0.01129669,22654.0,22653.0,1.348384]
[1674258238490,0.01129669,22654.0,22653.0,1.198384]
[1674258238988,0.01102583,22655.0,22654.0,0.591423]
[1674258239260,0.01102583,22655.0,22654.0,0.891423]
[1674258239519,8.3e-07,22655.0,22654.0,0.899923]
[1674258239781,0.003872,22656.0,22654.0,0.899923]
[1674258240078,0.003872,22656.0,22655.0,0.3085]
[1674258240309,0.003872,22656.0,22655.0,0.749903]
[1674258240581,0.01210609,22657.0,22656.0,0.591384]
[1674258240834,0.01210609,22657.0,22656.0,0.891384]
[1674258241410,0.01210609,22657.0,22656.0,0.911884]
[1674258241892,0.01210609,22657.0,22656.0,0.986884]
[1674258242126,0.01210609,22657.0,22656.0,0.911884]
[1674258242385,0.01310609,22657.0,22656.0,0.997884]
[1674258242650,0.01210609,22657.0,22656.0,0.911884]
[1674258242914,0.01310609,22657.0,22656.0,0.997884]
[1674258243433,9e-08,22657.0,22656.0,1.58475715]
[1674258243678,0.01129669,22659.0,22656.0,1.58475715]
[1674258243966,0.01129669,22659.0,22657.0,0.3749]
[1674258244198,0.01129669,22659.0,22658.0,1.25336]
[1674258244448,0.01129669,22659.0,22658.0,1.34119]
[1674258244994,6.9e-07,22659.0,22658.0,1.86206315]
[1674258245298,0.00821556,22660.0,22659.0,0.15]
[1674258245516,0.00821556,22660.0,22659.0,0.966225]
[1674258247056,5.6e-07,22660.0,22659.0,1.50769815]
[1674258247293,8.06374796,22663.0,22660.0,0.15]
[1674258247558,8.06374796,22663.0,22662.0,0.0659]
[1674258247814,8.06374796,22663.0,22662.0,0.815667]
[1674258248066,8.06374796,22663.0,22662.0,0.965667]
[1674258249083,8.06374796,22663.0,22662.0,1.052667]
[1674258249354,8.06374796,22663.0,22662.0,0.528267]
[1674258249355,8.23994389,22663.0,22662.0,0.528267]
[1674258249602,9.11273439,22663.0,22662.0,0.087]
[1674258249866,8.93653846,22663.0,22662.0,0.087]
[1674258250121,9.39105505,22663.0,22662.0,0.087]
[1674258250378,8.93153846,22663.0,22662.0,0.087]
[1674258250629,8.93153846,22663.0,22658.0,0.441327]
[1674258250630,0.2164,22662.0,22658.0,0.441327]
[1674258250884,0.74256507,22661.0,22658.0,0.441327]
[1674258251162,0.15,22662.0,22658.0,0.441327]
[1674258251796,8.05874796,22663.0,22658.0,0.441327]
[1674258251961,8.07074796,22663.0,22662.0,0.007]
[1674258252222,0.43732093,22662.0,22661.0,0.44127]
[1674258252481,0.74077193,22662.0,22661.0,0.44127]
[1674258252734,0.89077193,22662.0,22661.0,0.44127]
[1674258253235,0.89077193,22662.0,22656.0,0.741384]
[1674258253236,0.325028,22661.0,22658.0,0.44534]
[1674258253501,0.306712,22660.0,22658.0,0.44534]
[1674258253777,0.67772093,22662.0,22658.0,0.44534]
[1674258253778,0.299749,22659.0,22658.0,0.44534]
[1674258254025,0.15,22661.0,22658.0,0.44134]
[1674258254554,0.37456249,22660.0,22658.0,0.44834]
[1674258254812,0.467901,22659.0,22658.0,0.44134]
[1674258255061,0.534301,22659.0,22658.0,0.44834]
[1674258255560,0.2164,22659.0,22658.0,0.44834]
[1674258256072,0.70393093,22659.0,22657.0,0.441352]
[1674258256337,0.15,22659.0,22658.0,0.004]
[1674258256594,0.2157,22659.0,22656.0,0.441374]
[1674258256821,0.162,22659.0,22658.0,0.006]
[1674258257105,0.306464,22657.0,22656.0,0.441374]
[1674258258439,0.60208633,22657.0,22656.0,0.006]
[1674258258685,0.88921398,22657.0,22654.0,0.441415]
[1674258258947,0.0664,22655.0,22654.0,0.441415]
[1674258259194,0.24259593,22655.0,22653.0,0.441439]
[1674258259437,0.380232,22654.0,22649.0,0.441512]
[1674258259699,0.295844,22653.0,22649.0,0.441512]
[1674258259957,0.306967,22652.0,22650.0,0.49150199]
[1674258260213,0.066,22654.0,22650.0,0.49150199]
[1674258260744,0.298603,22653.0,22652.0,0.3]
[1674258261508,0.298603,22653.0,22651.0,0.44147]
[1674258261763,0.317992,22652.0,22651.0,0.20058466]
[1674258262282,0.012,22653.0,22651.0,0.20058466]
[1674258262539,0.327553,22652.0,22651.0,0.20058466]
[1674258262790,0.066,22654.0,22651.0,0.50058466]
[1674258263043,0.012,22652.0,22651.0,0.20658466]
[1674258263261,0.066,22654.0,22651.0,0.20058466]
[1674258263559,0.310064,22653.0,22651.0,0.20658466]
[1674258263827,0.066,22654.0,22652.0,0.3]
[1674258264075,0.078,22654.0,22652.0,0.3]
[1674258264321,0.078,22654.0,22652.0,0.441454]
[1674258264650,0.319977,22653.0,22652.0,0.441454]
[1674258264833,0.078,22654.0,22652.0,0.741454]
[1674258265100,0.078,22654.0,22652.0,0.441454]
[1674258265353,0.078,22654.0,22653.0,0.3]
[1674258265590,0.012,22654.0,22653.0,0.441442]
[1674258265871,0.61574523,22655.0,22653.0,0.741442]
[1674258266123,0.012,22654.0,22653.0,0.441442]
[1674258266364,0.61574523,22655.0,22653.0,0.741442]
[1674258266636,0.012,22654.0,22653.0,0.448442]
[1674258266883,0.46574523,22655.0,22654.0,0.441423]
[1674258267140,0.012,22655.0,22654.0,0.741423]
[1674258268669,0.96579053,22659.0,22654.0,0.741423]
[1674258268941,0.0657,22660.0,22656.0,1.10676037]
[1674258269203,0.0657,22660.0,22657.0,0.3]
[1674258269466,0.0657,22660.0,22658.0,0.88269]
[1674258269723,0.001,22659.0,22658.0,1.03269]
[1674258269969,0.0657,22660.0,22658.0,0.88269]
[1674258270242,0.0767,22660.0,22658.0,0.88269]
[1674258270494,0.0657,22660.0,22658.0,0.88269]
[1674258270761,0.011,22660.0,22659.0,0.3]
[1674258271074,0.011,22660.0,22659.0,1.18265]
[1674258272380,8.05874796,22663.0,22659.0,1.77792315]
[1674258272581,8.05874796,22663.0,22659.0,1.19115]
[1674258272857,8.05874796,22663.0,22661.0,0.882572]
[1674258273109,8.05874796,22663.0,22662.0,0.3]
[1674258273375,8.05874796,22663.0,22662.0,0.741267]
[1674258273912,8.05874796,22663.0,22662.0,0.891267]
[1674258275959,8.05874796,22663.0,22662.0,0.975267]
[1674258276472,8.05874796,22663.0,22662.0,0.825267]
[1674258276981,8.05874796,22663.0,22662.0,0.441267]
[1674258276982,8.23494389,22663.0,22662.0,0.441267]
[1674258277236,8.89063355,22663.0,22662.0,0.534267]
[1674258277554,8.43111696,22663.0,22662.0,0.534267]
[1674258277748,8.41942143,22663.0,22662.0,0.534267]
[1674258278264,8.41942143,22663.0,22662.0,0.441267]
[1674258279028,8.42342143,22663.0,22662.0,0.007]
[1674258280107,8.80910884,22663.0,22662.0,0.007]
[1674258281330,9.33452543,22663.0,22662.0,0.007]
[1674258281579,0.301578,22660.0,22658.0,0.441335]
[1674258281836,0.518423,22659.0,22658.0,0.441335]
[1674258282082,0.528018,22659.0,22658.0,0.441335]
[1674258282837,0.2159,22659.0,22658.0,0.441335]
[1674258283088,0.0659,22659.0,22658.0,0.523335]
[1674258283341,0.0669,22659.0,22658.0,0.823335]
[1674258283859,0.001,22659.0,22658.0,0.823335]
[1674258284638,0.001,22659.0,22658.0,0.973335]
[1674258287908,0.001,22659.0,22658.0,0.523335]
[1674258288418,0.001,22659.0,22658.0,0.97780815]
[1674258288663,0.01164073,22661.0,22660.0,0.882612]
[1674258288931,0.01164073,22661.0,22660.0,1.032612]
[1674258289179,0.01164073,22661.0,22660.0,1.099012]
[1674258289428,0.01164073,22661.0,22660.0,1.399012]
[1674258289677,0.02164073,22661.0,22660.0,1.403012]
[1674258290483,7.3e-07,22661.0,22660.0,1.403012]
[1674258291011,8.04705243,22663.0,22661.0,5.927e-05]
[1674258291263,8.04705243,22663.0,22662.0,0.948534]
[1674258291514,6.85174443,22663.0,22662.0,1.86150715]
[1674258291768,5.91528443,22663.0,22662.0,1.86150715]
[1674258292032,4.60146543,22663.0,22662.0,1.86150715]
[1674258292269,3.77462629,22663.0,22662.0,1.86150715]
[1674258292536,2.65410529,22663.0,22662.0,1.86150715]
[1674258292798,1.46368129,22663.0,22662.0,1.92790715]
[1674258293050,0.43384529,22663.0,22662.0,1.92790715]
[1674258293323,0.10878029,22663.0,22662.0,1.92790715]
[1674258293555,0.01210609,22666.0,22664.0,0.882456]
[1674258293804,0.01210609,22666.0,22665.0,0.957608]
[1674258294057,0.01210609,22666.0,22665.0,1.024008]
[1674258295329,0.01210609,22666.0,22665.0,1.117008]
[1674258295593,0.01210609,22666.0,22665.0,1.050608]
[1674258296609,9e-08,22666.0,22665.0,1.050608]
[1674258296866,9e-08,22666.0,22665.0,0.957608]
[1674258297161,9e-08,22666.0,22665.0,0.534208]
[1674258297971,9e-08,22666.0,22665.0,0.441208]
[1674258298178,9e-08,22666.0,22665.0,0.534208]
[1674258298427,9e-08,22666.0,22665.0,0.834208]
[1674258298679,0.01160844,22670.0,22665.0,1.42948115]
[1674258298939,0.01160844,22670.0,22668.0,0.0664]
[1674258299196,0.01374142,22673.0,22671.0,0.15]
[1674258299453,0.01374142,22673.0,22672.0,0.882144]
[1674258299726,0.07542142,22673.0,22672.0,0.882144]
[1674258299975,0.53814442,22673.0,22672.0,0.441072]
[1674258300247,0.41006442,22673.0,22672.0,0.441072]
[1674258300507,0.34426442,22673.0,22672.0,0.444072]
[1674258300759,0.34426442,22673.0,22668.0,0.441146]
[1674258301016,0.307617,22672.0,22669.0,0.15]
[1674258301267,0.327406,22671.0,22669.0,0.891122]
[1674258301525,0.323109,22670.0,22669.0,0.441122]
[1674258301785,0.01374142,22673.0,22669.0,0.741122]
[1674258301786,0.18993735,22673.0,22669.0,0.741122]
[1674258302042,0.01374142,22673.0,22670.0,0.3]
[1674258302328,0.30635,22672.0,22669.0,0.441122]
[1674258302576,0.48254593,22672.0,22668.0,0.441146]
[1674258302839,0.472068,22671.0,22668.0,0.441146]
[1674258303191,0.328055,22670.0,22669.0,0.007]
[1674258303349,0.328055,22670.0,22663.0,0.44177127]
[1674258303617,0.0664,22668.0,22663.0,0.44177127]
[1674258303871,0.47980393,22667.0,22663.0,0.44177127]
[1674258304113,0.313863,22666.0,22663.0,0.21986542]
[1674258304369,0.322449,22665.0,22663.0,0.21986542]
[1674258304616,0.307344,22664.0,22663.0,0.31286542]
[1674258304900,0.307344,22664.0,22663.0,0.20986542]
[1674258305415,0.41784323,22666.0,22663.0,0.20986542]
[1674258305695,0.2164,22669.0,22663.0,0.20986542]
[1674258305936,1.68135376,22671.0,22663.0,0.27626542]
[1674258306233,0.36296895,22669.0,22663.0,0.27626542]
[1674258306461,0.53916488,22669.0,22664.0,0.45]
[1674258306720,0.53916488,22669.0,22665.0,0.882401]
[1674258306721,0.004,22666.0,22665.0,0.882401]
[1674258306988,0.36296895,22669.0,22665.0,1.182401]
[1674258307241,0.36296895,22669.0,22666.0,0.3]
[1674258307504,0.31622,22668.0,22666.0,0.741178]
[1674258307772,0.316741,22667.0,22666.0,0.741178]
[1674258308016,0.36696895,22669.0,22666.0,0.741178]
[1674258308302,0.327345,22668.0,22666.0,0.441178]
[1674258308521,0.313169,22667.0,22666.0,0.441178]
[1674258308768,0.313169,22667.0,22665.0,0.484202]
[1674258309025,0.324867,22666.0,22665.0,0.484202]
[1674258309535,0.324867,22666.0,22665.0,0.441202]
[1674258310289,0.351867,22666.0,22665.0,0.444202]
[1674258311839,0.52806293,22666.0,22665.0,0.003]
[1674258312095,0.346867,22666.0,22665.0,0.003]
[1674258312363,0.496867,22666.0,22665.0,0.003]
[1674258313993,0.496867,22666.0,22665.0,0.223]
[1674258315025,0.491867,22666.0,22665.0,0.223]
[1674258315559,0.491867,22666.0,22659.0,0.441325]
[1674258315560,0.32462,22663.0,22659.0,0.441325]
[1674258315817,0.49718693,22662.0,22659.0,0.441325]
[1674258316106,0.313984,22661.0,22659.0,0.441325]
[1674258316369,0.3359043,22664.0,22659.0,0.441325]
[1674258316370,0.307965,22660.0,22659.0,0.23824959]
[1674258316635,0.307965,22660.0,22659.0,0.55624959]
[1674258316892,0.15,22663.0,22659.0,0.53824959]
[1674258317141,0.15,22663.0,22659.0,0.77624959]
[1674258317142,0.007,22661.0,22659.0,0.77624959]
[1674258317436,0.323499,22660.0,22659.0,0.75824959]
[1674258317696,0.007,22661.0,22659.0,0.75824959]
[1674258317969,0.007,22661.0,22660.0,0.3]
[1674258318225,0.007,22661.0,22660.0,0.741306]
[1674258318472,0.326798,22661.0,22660.0,0.741306]
[1674258319324,0.072,22661.0,22660.0,0.743306]
[1674258319570,0.394678,22661.0,22660.0,0.743306]
[1674258320077,0.322678,22661.0,22660.0,0.441306]
[1674258320380,0.335678,22661.0,22660.0,0.444306]
[1674258320938,0.335678,22661.0,22660.0,0.003]
[1674258321189,0.485678,22661.0,22660.0,0.003]
[1674258321469,0.64690238,22661.0,22659.0,0.22]
[1674258321723,0.434509,22660.0,22659.0,0.22]
[1674258322234,0.584509,22660.0,22659.0,0.22]
[1674258322505,0.524509,22660.0,22659.0,0.22]
[1674258322811,0.524509,22660.0,22659.0,0.223]
[1674258323322,0.90546303,22660.0,22659.0,0.223]
[1674258323579,0.90546303,22660.0,22659.0,0.22]
[1674258324369,1.08104613,22660.0,22659.0,0.21]
[1674258324907,1.15404613,22660.0,22659.0,0.212]
[1674258325157,1.00186303,22660.0,22659.0,0.212]
[1674258328270,0.93556303,22660.0,22659.0,0.212]
[1674258333452,0.78556303,22660.0,22659.0,0.212]
[1674258333699,0.71946303,22660.0,22659.0,0.212]
[1674258333971,0.71946303,22660.0,22657.0,0.43582035]
[1674258334219,0.321635,22659.0,22657.0,0.42582035]
[1674258334480,0.319681,22658.0,22657.0,0.42582035]
[1674258334730,0.309328,22658.0,22657.0,0.72582035]
[1674258335003,0.45395403,22660.0,22657.0,0.72582035]
[1674258335356,0.38095403,22660.0,22658.0,0.3]
[1674258335357,0.45595403,22660.0,22657.0,0.72782035]
[1674258335562,0.38095403,22660.0,22657.0,0.72582035]
[1674258335832,0.075,22658.0,22657.0,0.72782035]
[1674258337143,0.075,22658.0,22657.0,0.72582035]
[1674258337362,0.38095403,22660.0,22657.0,0.72582035]
[1674258337589,0.38095403,22660.0,22657.0,0.75582035]
[1674258338030,0.38095403,22660.0,22657.0,0.75782035]
[1674258338031,0.075,22658.0,22657.0,0.75782035]
[1674258338261,0.38095403,22660.0,22657.0,0.74582035]
[1674258338470,0.45542314,22660.0,22657.0,0.74782035]
[1674258338704,0.38042314,22660.0,22658.0,0.3]
[1674258338938,0.38042314,22660.0,22658.0,0.741333]
[1674258340258,0.45542314,22660.0,22658.0,0.441333]
[1674258340490,0.320567,22659.0,22658.0,0.441333]
[1674258340955,0.470567,22659.0,22657.0,0.032]
[1674258341212,0.15,22659.0,22657.0,0.03]
[1674258341437,0.79139254,22658.0,22657.0,0.03]
[1674258342583,0.79139254,22658.0,22657.0,0.02]
[1674258343471,0.79139254,22658.0,22657.0,0.022]
[1674258343692,0.91894179,22658.0,22657.0,0.02]
[1674258343916,0.86639254,22658.0,22657.0,0.022]
[1674258346194,0.86639254,22658.0,22657.0,0.017]
[1674258349524,0.86639254,22658.0,22657.0,0.002]
[1674258352391,0.385004,22658.0,22657.0,0.002]
[1674258352620,0.075,22658.0,22657.0,0.302]
[1674258353381,0.075,22658.0,22657.0,0.002]
[1674258354946,0.075,22658.0,22657.0,0.302]
[1674258356408,0.075,22658.0,22657.0,0.002]
[1674258358649,0.385437,22658.0,22657.0,0.002]
[1674258358895,0.385437,22658.0,22657.0,0.012]
[1674258363418,0.82074755,22658.0,22657.0,0.012]
[1674258365686,0.97074755,22658.0,22657.0,0.012]
[1674258365983,0.97074755,22658.0,22655.0,0.00719047]
[1674258365984,1.66049184,22658.0,22655.0,0.00719047]
[1674258366226,0.13744939,22656.0,22655.0,9.047e-05]
[1674258366486,1.44406267,22656.0,22653.0,0.00719047]
[1674258366747,0.17133678,22654.0,22653.0,0.00719047]
[1674258367011,1.5991,22654.0,22653.0,0.00719047]
[1674258367272,2.37032316,22654.0,22653.0,0.00719047]
[1674258367573,2.37032316,22654.0,22645.0,0.55440418]
[1674258367574,0.15,22653.0,22645.0,0.44980919]
[1674258367819,0.15,22651.0,22645.0,0.44980919]
[1674258368117,0.48275693,22650.0,22645.0,0.44980919]
[1674258368371,0.48971293,22649.0,22645.0,0.00821919]
[1674258368628,0.15,22647.0,22645.0,0.00821919]
[1674258368890,0.328854,22646.0,22645.0,0.00821919]
[1674258369148,0.0658,22650.0,22645.0,0.44980519]
[1674258369921,0.316245,22649.0,22645.0,0.44980519]
[1674258370202,0.326373,22648.0,22645.0,0.44980519]
[1674258370423,0.306615,22647.0,22645.0,0.44980519]
[1674258370697,0.17619593,22648.0,22645.0,0.00821919]
[1674258370930,0.320777,22647.0,22645.0,0.00821919]
[1674258371189,0.324175,22646.0,22645.0,0.00821919]
[1674258371479,0.30215,22649.0,22645.0,0.00821919]
[1674258371702,0.007,22647.0,22645.0,0.00821919]
[1674258372204,0.007,22647.0,22645.0,0.30821919]
[1674258372451,0.007,22647.0,22645.0,0.00821919]
[1674258372755,0.15,22649.0,22645.0,0.00821919]
[1674258372983,0.081,22647.0,22645.0,0.00821919]
[1674258373248,0.314273,22646.0,22645.0,0.00821919]
[1674258373499,0.081,22647.0,22645.0,0.00821919]
[1674258373748,0.314916,22646.0,22645.0,0.00821919]
[1674258374252,0.314916,22646.0,22645.0,0.30821919]
[1674258374513,0.310384,22646.0,22645.0,0.30821919]
[1674258374764,0.15,22648.0,22645.0,0.30821919]
[1674258375017,0.15,22652.0,22646.0,1.249358]
[1674258375310,0.61524559,22651.0,22646.0,1.249358]
[1674258375514,0.61524559,22651.0,22647.0,0.15]
[1674258375794,0.54012059,22651.0,22648.0,0.441536]
[1674258376289,0.31195,22650.0,22648.0,0.441536]
[1674258376537,0.317514,22649.0,22647.0,0.441544]
[1674258376802,0.31707,22648.0,22647.0,0.441544]
[1674258377806,0.46707,22648.0,22647.0,0.441544]
[1674258378097,0.47907,22648.0,22647.0,0.443544]
[1674258379149,0.47907,22648.0,22647.0,0.002]
[1674258379393,0.47853911,22648.0,22647.0,0.002]